{"text_format":"1","workbook":"xlsx","n_sheets":2,"sheets":["Adressen","Rg_Eingang_Tag"],"not_rendered":{"charts":0,"images":0,"macros":1,"external_links":1,"defined_names":1,"comments":0,"pivot_tables":0},"unopened":[],"bounds":{"document_bytes":16777216,"sheet_cells":100000,"rows_first":2000,"rows_last":500,"rows_between":2000,"halvings":0,"cell_chars":16384,"cell_head_chars":4096},"cells_cut":0,"cells_raw":0,"read":"whole","date_system":"1900"}

{"sheet":"Adressen","index":0,"n_rows":349,"n_cols":16,"rows_kept":349,"cut":false,"hidden":false,"merged":[]}
[]
[null,null,null,null,null,null,null,null,null,null,null,null,null,"Datum",null,"Firma"]
[null,null,null,null,null,null,null,null,null,null,null,null,null,"2026-01-05",null,"MG"]
[null,null,null,null,null,null,null,null,null,null,null,null,null,"2026-01-05",null,"MG"]
[null,null,null,null,null,null,null,null,null,null,null,null,null,"2026-01-05",null,"MG"]
[null,null,null,null,null,null,null,null,null,null,null,null,null,"2026-01-06",null,"MG"]
[null,null,null,null,null,null,null,null,null,null,null,null,null,"2026-01-06",null,"MG"]
[null,null,null,null,null,null,null,null,null,null,null,null,null,"2026-01-06",null,"MG"]
[null,null,null,null,null,null,null,null,null,null,null,null,null,"2026-01-06",null,"MG"]
[null,null,null,null,null,null,null,null,null,null,null,null,null,"2026-01-06",null,"MG"]
[null,null,null,null,null,null,null,null,null,null,null,null,null,"2026-01-06",null,"MG"]
[null,null,null,null,null,null,null,null,null,null,null,null,null,"2026-01-06",null,"MG"]
[null,null,null,null,null,null,null,null,null,null,null,null,null,"2026-01-06",null,"MG"]
[null,null,null,null,null,null,null,null,null,null,null,null,null,"2026-01-06",null,"MG"]
[null,null,null,null,null,null,null,null,null,null,null,null,null,"2026-01-06",null,"MG"]
[null,null,null,null,null,null,null,null,null,null,null,null,null,"2026-01-06",null,"MG"]
[null,null,null,null,null,null,null,null,null,null,null,null,null,"2026-01-06",null,"MG"]
[null,null,null,null,null,null,null,null,null,null,null,null,null,"2026-01-06",null,"MG"]
[null,null,null,null,null,null,null,null,null,null,null,null,null,"2026-01-06",null,"MG"]
[null,null,null,null,null,null,null,null,null,null,null,null,null,"2026-01-06",null,"MG"]
[null,null,null,null,null,null,null,null,null,null,null,null,null,"2026-01-06",null,"MG"]
[null,null,null,null,null,null,null,null,null,null,null,null,null,"2026-01-06",null,"Slo"]
[null,null,null,null,null,null,null,null,null,null,null,null,null,"2026-01-06",null,"Slo"]
[null,null,null,null,null,null,null,null,null,null,null,null,null,"2026-01-07",null,"MG"]
[null,null,null,null,null,null,null,null,null,null,null,null,null,"2026-01-07",null,"MG"]
[null,null,null,null,null,null,null,null,null,null,null,null,null,"2026-01-07",null,"MG"]
[null,null,null,null,null,null,null,null,null,null,null,null,null,"2026-01-07",null,"MG"]
[null,null,null,null,null,null,null,null,null,null,null,null,null,"2026-01-07",null,"MG"]
[null,null,null,null,null,null,null,null,null,null,null,null,null,"2026-01-07",null,"MG"]
[null,null,null,null,null,null,null,null,null,null,null,null,null,"2026-01-07",null,"MG"]
[null,null,null,null,null,null,null,null,null,null,null,null,null,"2026-01-07",null,"MG"]
[null,null,null,null,null,null,null,null,null,null,null,null,null,"2026-01-07",null,"MG"]
[null,null,null,null,null,null,null,null,null,null,null,null,null,"2026-01-07",null,"MG"]
[null,null,null,null,null,null,null,null,null,null,null,null,null,"2026-01-07",null,"MG"]
[null,null,null,null,null,null,null,null,null,null,null,null,null,"2026-01-07",null,"MG"]
[null,null,null,null,null,null,null,null,null,null,null,null,null,"2026-01-07",null,"MG"]
[null,null,null,null,null,null,null,null,null,null,null,null,null,"2026-01-07",null,"MG"]
[null,null,null,null,null,null,null,null,null,null,null,null,null,"2026-01-07",null,"MG"]
[null,null,null,null,null,null,null,null,null,null,null,null,null,"2026-01-08",null,"MG"]
[null,null,null,null,null,null,null,null,null,null,null,null,null,"2026-01-08",null,"MG"]
[null,null,null,null,null,null,null,null,null,null,null,null,null,"2026-01-08",null,"MG"]
[null,null,null,null,null,null,null,null,null,null,null,null,null,"2026-01-08",null,"MG"]
[null,null,null,null,null,null,null,null,null,null,null,null,null,"2026-01-08",null,"MG"]
[null,null,null,null,null,null,null,null,null,null,null,null,null,"2026-01-08",null,"MG"]
[null,null,null,null,null,null,null,null,null,null,null,null,null,"2026-01-12",null,"MG"]
[null,null,null,null,null,null,null,null,null,null,null,null,null,"2026-01-12",null,"MG"]
[null,null,null,null,null,null,null,null,null,null,null,null,null,"2026-01-12",null,"MG"]
[null,null,null,null,null,null,null,null,null,null,null,null,null,"2026-01-12",null,"MG"]
[null,null,null,null,null,null,null,null,null,null,null,null,null,"2026-01-12",null,"MG"]
[null,null,null,null,null,null,null,null,null,null,null,null,null,"2026-01-13",null,"MG"]
[null,null,null,null,null,null,null,null,null,null,null,null,null,"2026-01-13",null,"MG"]
[null,null,null,null,null,null,null,null,null,null,null,null,null,"2026-01-13",null,"MG"]
[null,null,null,null,null,null,null,null,null,null,null,null,null,"2026-01-13",null,"MG"]
[null,null,null,null,null,null,null,null,null,null,null,null,null,"2026-01-13",null,"MG"]
[null,null,null,null,null,null,null,null,null,null,null,null,null,"2026-01-13",null,"MG"]
[null,null,null,null,null,null,null,null,null,null,null,null,null,"2026-01-13",null,"MG"]
[null,null,null,null,null,null,null,null,null,null,null,null,null,"2026-01-13",null,"MG"]
[null,null,null,null,null,null,null,null,null,null,null,null,null,"2026-01-13",null,"MG"]
[null,null,null,null,null,null,null,null,null,null,null,null,null,"2026-01-13",null,"MG"]
[null,null,null,null,null,null,null,null,null,null,null,null,null,"2026-01-13",null,"MG"]
[null,null,null,null,null,null,null,null,null,null,null,null,null,"2026-01-13",null,"MG"]
[null,null,null,null,null,null,null,null,null,null,null,null,null,"2026-01-13",null,"MG"]
[null,null,null,null,null,null,null,null,null,null,null,null,null,"2026-01-13",null,"MG"]
[null,null,null,null,null,null,null,null,null,null,null,null,null,"2026-01-13",null,"MG"]
[null,null,null,null,null,null,null,null,null,null,null,null,null,"2026-01-13",null,"MG"]
[null,null,null,null,null,null,null,null,null,null,null,null,null,"2026-01-13",null,"MG"]
[null,null,null,null,null,null,null,null,null,null,null,null,null,"2026-01-14",null,"MG"]
[null,null,null,null,null,null,null,null,null,null,null,null,null,"2026-01-14",null,"MG"]
[null,null,null,null,null,null,null,null,null,null,null,null,null,"2026-01-16",null,"MG"]
[null,null,null,null,null,null,null,null,null,null,null,null,null,"2026-01-16",null,"MG"]
[null,null,null,null,null,null,null,null,null,null,null,null,null,"2026-01-16",null,"MG"]
[null,null,null,null,null,null,null,null,null,null,null,null,null,"2026-01-16",null,"MG"]
[null,null,null,null,null,null,null,null,null,null,null,null,null,"2026-01-16",null,"MG"]
[null,null,null,null,null,null,null,null,null,null,null,null,null,"2026-01-16",null,"MG"]
[null,null,null,null,null,null,null,null,null,null,null,null,null,"2026-01-16",null,"MG"]
[null,null,null,null,null,null,null,null,null,null,null,null,null,"2026-01-19",null,"MG"]
[null,null,null,null,null,null,null,null,null,null,null,null,null,"2026-01-19",null,"MG"]
[null,null,null,null,null,null,null,null,null,null,null,null,null,"2026-01-19",null,"MG"]
[null,null,null,null,null,null,null,null,null,null,null,null,null,"2026-01-19",null,"MG"]
[null,null,null,null,null,null,null,null,null,null,null,null,null,"2026-01-20",null,"MG"]
[null,null,null,null,null,null,null,null,null,null,null,null,null,"2026-01-20",null,"MG"]
[null,null,null,null,null,null,null,null,null,null,null,null,null,"2026-01-20",null,"MG"]
[null,null,null,null,null,null,null,null,null,null,null,null,null,"2026-01-20",null,"MG"]
[null,null,null,null,null,null,null,null,null,null,null,null,null,"2026-01-20",null,"MG"]
[null,null,null,null,null,null,null,null,null,null,null,null,null,"2026-01-20",null,"MG"]
[null,null,null,null,null,null,null,null,null,null,null,null,null,"2026-01-20",null,"MG"]
[null,null,null,null,null,null,null,null,null,null,null,null,null,"2026-01-20",null,"MG"]
[null,null,null,null,null,null,null,null,null,null,null,null,null,"2026-01-21",null,"MG"]
[null,null,null,null,null,null,null,null,null,null,null,null,null,"2026-01-21",null,"MG"]
[null,null,null,null,null,null,null,null,null,null,null,null,null,"2026-01-21",null,"MG"]
[null,null,null,null,null,null,null,null,null,null,null,null,null,"2026-01-21",null,"MG"]
[null,null,null,null,null,null,null,null,null,null,null,null,null,"2026-01-21",null,"MG"]
[null,null,null,null,null,null,null,null,null,null,null,null,null,"2026-01-21",null,"MG"]
[null,null,null,null,null,null,null,null,null,null,null,null,null,"2026-01-21",null,"MG"]
[null,null,null,null,null,null,null,null,null,null,null,null,null,"2026-01-21",null,"MG"]
[null,null,null,null,null,null,null,null,null,null,null,null,null,"2026-01-21",null,"Slo"]
[null,null,null,null,null,null,null,null,null,null,null,null,null,"2026-01-21",null,"Slo"]
[null,null,null,null,null,null,null,null,null,null,null,null,null,"2026-01-21",null,"Slo"]
[null,null,null,null,null,null,null,null,null,null,null,null,null,"2026-01-21",null,"Slo"]
[null,null,null,null,null,null,null,null,null,null,null,null,null,"2026-01-21",null,"Slo"]
[null,null,null,null,null,null,null,null,null,null,null,null,null,"2026-01-22",null,"MG"]
[null,null,null,null,null,null,null,null,null,null,null,null,null,"2026-01-22",null,"MG"]
[null,null,null,null,null,null,null,null,null,null,null,null,null,"2026-01-22",null,"MG"]
[null,null,null,null,null,null,null,null,null,null,null,null,null,"2026-01-22",null,"MG"]
[null,null,null,null,null,null,null,null,null,null,null,null,null,"2026-01-22",null,"MG"]
[null,null,null,null,null,null,null,null,null,null,null,null,null,"2026-01-23",null,"MG"]
[null,null,null,null,null,null,null,null,null,null,null,null,null,"2026-01-23",null,"MG"]
[null,null,null,null,null,null,null,null,null,null,null,null,null,"2026-01-23",null,"MG"]
[null,null,null,null,null,null,null,null,null,null,null,null,null,"2026-01-23",null,"MG"]
[null,null,null,null,null,null,null,null,null,null,null,null,null,"2026-01-23",null,"MG"]
[null,null,null,null,null,null,null,null,null,null,null,null,null,"2026-01-23",null,"MG"]
[null,null,null,null,null,null,null,null,null,null,null,null,null,"2026-01-23",null,"MG"]
[null,null,null,null,null,null,null,null,null,null,null,null,null,"2026-01-23",null,"MG"]
[null,null,null,null,null,null,null,null,null,null,null,null,null,"2026-01-23",null,"MG"]
[null,null,null,null,null,null,null,null,null,null,null,null,null,"2026-01-23",null,"MG"]
[null,null,null,null,null,null,null,null,null,null,null,null,null,"2026-01-23",null,"MG"]
[null,null,null,null,null,null,null,null,null,null,null,null,null,"2026-01-23",null,"MG"]
[null,null,null,null,null,null,null,null,null,null,null,null,null,"2026-01-26",null,"MG"]
[null,null,null,null,null,null,null,null,null,null,null,null,null,"2026-01-26",null,"MG"]
[null,null,null,null,null,null,null,null,null,null,null,null,null,"2026-01-26",null,"MG"]
[null,null,null,null,null,null,null,null,null,null,null,null,null,"2026-01-27",null,"MG"]
[null,null,null,null,null,null,null,null,null,null,null,null,null,"2026-01-27",null,"MG"]
[null,null,null,null,null,null,null,null,null,null,null,null,null,"2026-01-27",null,"MG"]
[null,null,null,null,null,null,null,null,null,null,null,null,null,"2026-01-27",null,"MG"]
[null,null,null,null,null,null,null,null,null,null,null,null,null,"2026-01-27",null,"MG"]
[null,null,null,null,null,null,null,null,null,null,null,null,null,"2026-01-27",null,"MG"]
[null,null,null,null,null,null,null,null,null,null,null,null,null,"2026-01-28",null,"MG"]
[null,null,null,null,null,null,null,null,null,null,null,null,null,"2026-01-28",null,"MG"]
[null,null,null,null,null,null,null,null,null,null,null,null,null,"2026-01-28",null,"MG"]
[null,null,null,null,null,null,null,null,null,null,null,null,null,"2026-01-28",null,"MG"]
[null,null,null,null,null,null,null,null,null,null,null,null,null,"2026-01-28",null,"MG"]
[null,null,null,null,null,null,null,null,null,null,null,null,null,"2026-01-28",null,"MG"]
[null,null,null,null,null,null,null,null,null,null,null,null,null,"2026-01-28",null,"MG"]
[null,null,null,null,null,null,null,null,null,null,null,null,null,"2026-01-28",null,"MG"]
[null,null,null,null,null,null,null,null,null,null,null,null,null,"2026-01-28",null,"MG"]
[null,null,null,null,null,null,null,null,null,null,null,null,null,"2026-01-28",null,"Slo"]
[null,null,null,null,null,null,null,null,null,null,null,null,null,"2026-01-29",null,"MG"]
[null,null,null,null,null,null,null,null,null,null,null,null,null,"2026-01-29",null,"Slo"]
[null,null,null,null,null,null,null,null,null,null,null,null,null,"2026-01-30",null,"MG"]
[null,null,null,null,null,null,null,null,null,null,null,null,null,"2026-01-30",null,"Slo"]
[null,null,null,null,null,null,null,null,null,null,null,null,null,"2026-01-30",null,"Slo"]
[null,null,null,null,null,null,null,null,null,null,null,null,null,"2026-02-02",null,"MG"]
[null,null,null,null,null,null,null,null,null,null,null,null,null,"2026-02-02",null,"MG"]
[null,null,null,null,null,null,null,null,null,null,null,null,null,"2026-02-02",null,"MG"]
[null,null,null,null,null,null,null,null,null,null,null,null,null,"2026-02-02",null,"MG"]
[null,null,null,null,null,null,null,null,null,null,null,null,null,"2026-02-02",null,"MG"]
[null,null,null,null,null,null,null,null,null,null,null,null,null,"2026-02-02",null,"MG"]
[null,null,null,null,null,null,null,null,null,null,null,null,null,"2026-02-03",null,"MG"]
[null,null,null,null,null,null,null,null,null,null,null,null,null,"2026-02-03",null,"MG"]
[null,null,null,null,null,null,null,null,null,null,null,null,null,"2026-02-03",null,"MG"]
[null,null,null,null,null,null,null,null,null,null,null,null,null,"2026-02-03",null,"MG"]
[null,null,null,null,null,null,null,null,null,null,null,null,null,"2026-02-03",null,"MG"]
[null,null,null,null,null,null,null,null,null,null,null,null,null,"2026-02-03",null,"Slo"]
[null,null,null,null,null,null,null,null,null,null,null,null,null,"2026-02-04",null,"MG"]
[null,null,null,null,null,null,null,null,null,null,null,null,null,"2026-02-04",null,"MG"]
[null,null,null,null,null,null,null,null,null,null,null,null,null,"2026-02-04",null,"MG"]
[null,null,null,null,null,null,null,null,null,null,null,null,null,"2026-02-04",null,"MG"]
[null,null,null,null,null,null,null,null,null,null,null,null,null,"2026-02-04",null,"MG"]
[null,null,null,null,null,null,null,null,null,null,null,null,null,"2026-02-04",null,"MG"]
[null,null,null,null,null,null,null,null,null,null,null,null,null,"2026-02-04",null,"MG"]
[null,null,null,null,null,null,null,null,null,null,null,null,null,"2026-02-04",null,"MG"]
[null,null,null,null,null,null,null,null,null,null,null,null,null,"2026-02-04",null,"MG"]
[null,null,null,null,null,null,null,null,null,null,null,null,null,"2026-02-05",null,"MG"]
[null,null,null,null,null,null,null,null,null,null,null,null,null,"2026-02-05",null,"MG"]
[null,null,null,null,null,null,null,null,null,null,null,null,null,"2026-02-06",null,"MG"]
[null,null,null,null,null,null,null,null,null,null,null,null,null,"2026-02-06",null,"MG"]
[null,null,null,null,null,null,null,null,null,null,null,null,null,"2026-02-06",null,"MG"]
[null,null,null,null,null,null,null,null,null,null,null,null,null,"2026-02-06",null,"MG"]
[null,null,null,null,null,null,null,null,null,null,null,null,null,"2026-02-06",null,"MG"]
[null,null,null,null,null,null,null,null,null,null,null,null,null,"2026-02-06",null,"MG"]
[null,null,null,null,null,null,null,null,null,null,null,null,null,"2026-02-06",null,"MG"]
[null,null,null,null,null,null,null,null,null,null,null,null,null,"2026-02-09",null,"MG"]
[null,null,null,null,null,null,null,null,null,null,null,null,null,"2026-02-09",null,"MG"]
[null,null,null,null,null,null,null,null,null,null,null,null,null,"2026-02-09",null,"MG"]
[null,null,null,null,null,null,null,null,null,null,null,null,null,"2026-02-09",null,"MG"]
[null,null,null,null,null,null,null,null,null,null,null,null,null,"2026-02-09",null,"Slo"]
[null,null,null,null,null,null,null,null,null,null,null,null,null,"2026-02-10",null,"Slo"]
[null,null,null,null,null,null,null,null,null,null,null,null,null,"2026-02-10",null,"MG"]
[null,null,null,null,null,null,null,null,null,null,null,null,null,"2026-02-10",null,"Slo"]
[null,null,null,null,null,null,null,null,null,null,null,null,null,"2026-02-10",null,"MG"]
[null,null,null,null,null,null,null,null,null,null,null,null,null,"2026-02-10",null,"MG"]
[null,null,null,null,null,null,null,null,null,null,null,null,null,"2026-02-11",null,"MG"]
[null,null,null,null,null,null,null,null,null,null,null,null,null,"2026-02-11",null,"MG"]
[null,null,null,null,null,null,null,null,null,null,null,null,null,"2026-02-11",null,"MG"]
[null,null,null,null,null,null,null,null,null,null,null,null,null,"2026-02-11",null,"MG"]
[null,null,null,null,null,null,null,null,null,null,null,null,null,"2026-02-11",null,"MG"]
[null,null,null,null,null,null,null,null,null,null,null,null,null,"2026-02-11",null,"MG"]
[null,null,null,null,null,null,null,null,null,null,null,null,null,"2026-02-11",null,"MG"]
[null,null,null,null,null,null,null,null,null,null,null,null,null,"2026-02-11",null,"MG"]
[null,null,null,null,null,null,null,null,null,null,null,null,null,"2026-02-11",null,"MG"]
[null,null,null,null,null,null,null,null,null,null,null,null,null,"2026-02-11",null,"MG"]
[null,null,null,null,null,null,null,null,null,null,null,null,null,"2026-02-11",null,"MG"]
[null,null,null,null,null,null,null,null,null,null,null,null,null,"2026-02-12",null,"MG"]
[null,null,null,null,null,null,null,null,null,null,null,null,null,"2026-02-12",null,"MG"]
[null,null,null,null,null,null,null,null,null,null,null,null,null,"2026-02-12",null,"MG"]
[null,null,null,null,null,null,null,null,null,null,null,null,null,"2026-02-12",null,"MG"]
[null,null,null,null,null,null,null,null,null,null,null,null,null,"2026-02-12",null,"MG"]
[null,null,null,null,null,null,null,null,null,null,null,null,null,"2026-02-12",null,"MG"]
[null,null,null,null,null,null,null,null,null,null,null,null,null,"2026-02-18",null,"Slo"]
[null,null,null,null,null,null,null,null,null,null,null,null,null,"2026-02-18",null,"MG"]
[null,null,null,null,null,null,null,null,null,null,null,null,null,"2026-02-18",null,"MG"]
[null,null,null,null,null,null,null,null,null,null,null,null,null,"2026-02-18",null,"MG"]
[null,null,null,null,null,null,null,null,null,null,null,null,null,"2026-02-18",null,"MG"]
[null,null,null,null,null,null,null,null,null,null,null,null,null,"2026-02-18",null,"MG"]
[null,null,null,null,null,null,null,null,null,null,null,null,null,"2026-02-20",null,"MG"]
[null,null,null,null,null,null,null,null,null,null,null,null,null,"2026-02-20",null,"MG"]
[null,null,null,null,null,null,null,null,null,null,null,null,null,"2026-02-20",null,"MG"]
[null,null,null,null,null,null,null,null,null,null,null,null,null,"2026-02-20",null,"MG"]
[null,null,null,null,null,null,null,null,null,null,null,null,null,"2026-02-23",null,"MG"]
[null,null,null,null,null,null,null,null,null,null,null,null,null,"2026-02-23",null,"Slo"]
[null,null,null,null,null,null,null,null,null,null,null,null,null,"2026-02-23",null,"MG"]
[null,null,null,null,null,null,null,null,null,null,null,null,null,"2026-02-23",null,"MG"]
[null,null,null,null,null,null,null,null,null,null,null,null,null,"2026-02-23",null,"MG"]
[null,null,null,null,null,null,null,null,null,null,null,null,null,"2026-02-23",null,"MG"]
[null,null,null,null,null,null,null,null,null,null,null,null,null,"2026-02-23",null,"MG"]
[null,null,null,null,null,null,null,null,null,null,null,null,null,"2026-02-24",null,"MG"]
[null,null,null,null,null,null,null,null,null,null,null,null,null,"2026-02-24",null,"MG"]
[null,null,null,null,null,null,null,null,null,null,null,null,null,"2026-02-24",null,"MG"]
[null,null,null,null,null,null,null,null,null,null,null,null,null,"2026-02-24",null,"MG"]
[null,null,null,null,null,null,null,null,null,null,null,null,null,"2026-02-24",null,"MG"]
[null,null,null,null,null,null,null,null,null,null,null,null,null,"2026-02-24",null,"MG"]
[null,null,null,null,null,null,null,null,null,null,null,null,null,"2026-02-25",null,"Slo"]
[null,null,null,null,null,null,null,null,null,null,null,null,null,"2026-02-25",null,"Slo"]
[null,null,null,null,null,null,null,null,null,null,null,null,null,"2026-02-25",null,"MG"]
[null,null,null,null,null,null,null,null,null,null,null,null,null,"2026-02-25",null,"MG"]
[null,null,null,null,null,null,null,null,null,null,null,null,null,"2026-02-25",null,"MG"]
[null,null,null,null,null,null,null,null,null,null,null,null,null,"2026-02-26",null,"MG"]
[null,null,null,null,null,null,null,null,null,null,null,null,null,"2026-02-26",null,"MG"]
[null,null,null,null,null,null,null,null,null,null,null,null,null,"2026-02-26",null,"MG"]
[null,null,null,null,null,null,null,null,null,null,null,null,null,"2026-02-27",null,"MG"]
[null,null,null,null,null,null,null,null,null,null,null,null,null,"2026-02-27",null,"MG"]
[null,null,null,null,null,null,null,null,null,null,null,null,null,"2026-02-27",null,"MG"]
[null,null,null,null,null,null,null,null,null,null,null,null,null,"2026-02-27",null,"MG"]
[null,null,null,null,null,null,null,null,null,null,null,null,null,"2026-02-27",null,"MG"]
[null,null,null,null,null,null,null,null,null,null,null,null,null,"2026-02-27",null,"MG"]
[null,null,null,null,null,null,null,null,null,null,null,null,null,"2026-02-27",null,"MG"]
[null,null,null,null,null,null,null,null,null,null,null,null,null,"2026-03-02",null,"Slo"]
[null,null,null,null,null,null,null,null,null,null,null,null,null,"2026-03-02",null,"MG"]
[null,null,null,null,null,null,null,null,null,null,null,null,null,"2026-03-02",null,"MG"]
[null,null,null,null,null,null,null,null,null,null,null,null,null,"2026-03-03",null,"MG"]
[null,null,null,null,null,null,null,null,null,null,null,null,null,"2026-03-03",null,"MG"]
[null,null,null,null,null,null,null,null,null,null,null,null,null,"2026-03-03",null,"MG"]
[null,null,null,null,null,null,null,null,null,null,null,null,null,"2026-03-03",null,"MG"]
[null,null,null,null,null,null,null,null,null,null,null,null,null,"2026-03-03",null,"MG"]
[null,null,null,null,null,null,null,null,null,null,null,null,null,"2026-03-03",null,"MG"]
[null,null,null,null,null,null,null,null,null,null,null,null,null,"2026-03-03",null,"MG"]
[null,null,null,null,null,null,null,null,null,null,null,null,null,"2026-03-03",null,"MG"]
[null,null,null,null,null,null,null,null,null,null,null,null,null,"2026-03-03",null,"MG"]
[null,null,null,null,null,null,null,null,null,null,null,null,null,"2026-03-04",null,"MG"]
[null,null,null,null,null,null,null,null,null,null,null,null,null,"2026-03-04",null,"MG"]
[null,null,null,null,null,null,null,null,null,null,null,null,null,"2026-03-04",null,"MG"]
[null,null,null,null,null,null,null,null,null,null,null,null,null,"2026-03-05",null,"Slo"]
[null,null,null,null,null,null,null,null,null,null,null,null,null,"2026-03-06",null,"MG"]
[null,null,null,null,null,null,null,null,null,null,null,null,null,"2026-03-06",null,"MG"]
[null,null,null,null,null,null,null,null,null,null,null,null,null,"2026-03-06",null,"MG"]
[null,null,null,null,null,null,null,null,null,null,null,null,null,"2026-03-06",null,"MG"]
[null,null,null,null,null,null,null,null,null,null,null,null,null,"2026-03-06",null,"MG"]
[null,null,null,null,null,null,null,null,null,null,null,null,null,"2026-03-06",null,"MG"]
[null,null,null,null,null,null,null,null,null,null,null,null,null,"2026-03-06",null,"MG"]
[null,null,null,null,null,null,null,null,null,null,null,null,null,"2026-03-09",null,"MG"]
[null,null,null,null,null,null,null,null,null,null,null,null,null,"2026-03-09",null,"MG"]
[null,null,null,null,null,null,null,null,null,null,null,null,null,"2026-03-09",null,"MG"]
[null,null,null,null,null,null,null,null,null,null,null,null,null,"2026-03-09",null,"MG"]
[null,null,null,null,null,null,null,null,null,null,null,null,null,"2026-03-09",null,"Slo"]
[null,null,null,null,null,null,null,null,null,null,null,null,null,"2026-03-09",null,"MG"]
[null,null,null,null,null,null,null,null,null,null,null,null,null,"2026-03-09",null,"MG"]
[null,null,null,null,null,null,null,null,null,null,null,null,null,"2026-03-10",null,"MG"]
[null,null,null,null,null,null,null,null,null,null,null,null,null,"2026-03-10",null,"MG"]
[null,null,null,null,null,null,null,null,null,null,null,null,null,"2026-03-10",null,"MG"]
[null,null,null,null,null,null,null,null,null,null,null,null,null,"2026-03-10",null,"MG"]
[null,null,null,null,null,null,null,null,null,null,null,null,null,"2026-03-10",null,"MG"]
[null,null,null,null,null,null,null,null,null,null,null,null,null,"2026-03-10",null,"MG"]
[null,null,null,null,null,null,null,null,null,null,null,null,null,"2026-03-10",null,"MG"]
[null,null,null,null,null,null,null,null,null,null,null,null,null,"2026-03-10",null,"MG"]
[null,null,null,null,null,null,null,null,null,null,null,null,null,"2026-03-10",null,"MG"]
[null,null,null,null,null,null,null,null,null,null,null,null,null,"2026-03-11",null,"MG"]
[null,null,null,null,null,null,null,null,null,null,null,null,null,"2026-03-11",null,"MG"]
[null,null,null,null,null,null,null,null,null,null,null,null,null,"2026-03-11",null,"MG"]
[null,null,null,null,null,null,null,null,null,null,null,null,null,"2026-03-12",null,"MG"]
[null,null,null,null,null,null,null,null,null,null,null,null,null,"2026-03-13",null,"MG"]
[null,null,null,null,null,null,null,null,null,null,null,null,null,"2026-03-13",null,"MG"]
[null,null,null,null,null,null,null,null,null,null,null,null,null,"2026-03-13",null,"MG"]
[null,null,null,null,null,null,null,null,null,null,null,null,null,"2026-03-13",null,"MG"]
[null,null,null,null,null,null,null,null,null,null,null,null,null,"2026-03-13",null,"MG"]
[null,null,null,null,null,null,null,null,null,null,null,null,null,"2026-03-13",null,"MG"]
[null,null,null,null,null,null,null,null,null,null,null,null,null,"2026-03-13",null,"MG"]
[null,null,null,null,null,null,null,null,null,null,null,null,null,"2026-03-13",null,"MG"]
[null,null,null,null,null,null,null,null,null,null,null,null,null,"2026-03-13",null,"MG"]
[null,null,null,null,null,null,null,null,null,null,null,null,null,"2026-03-13",null,"MG"]
[null,null,null,null,null,null,null,null,null,null,null,null,null,"2026-03-13",null,"MG"]
[null,null,null,null,null,null,null,null,null,null,null,null,null,"2026-03-13",null,"MG"]
[null,null,null,null,null,null,null,null,null,null,null,null,null,"2026-03-16",null,"MG"]
[null,null,null,null,null,null,null,null,null,null,null,null,null,"2026-03-16",null,"Slo"]
[null,null,null,null,null,null,null,null,null,null,null,null,null,"2026-03-16",null,"Slo"]
[null,null,null,null,null,null,null,null,null,null,null,null,null,"2026-03-16",null,"Slo"]
[null,null,null,null,null,null,null,null,null,null,null,null,null,"2026-03-16",null,"Slo"]
[null,null,null,null,null,null,null,null,null,null,null,null,null,"2026-03-16",null,"MG"]
[null,null,null,null,null,null,null,null,null,null,null,null,null,"2026-03-16",null,"MG"]
[null,null,null,null,null,null,null,null,null,null,null,null,null,"2026-03-16",null,"MG"]
[null,null,null,null,null,null,null,null,null,null,null,null,null,"2026-03-16",null,"MG"]
[null,null,null,null,null,null,null,null,null,null,null,null,null,"2026-03-17",null,"MG"]
[null,null,null,null,null,null,null,null,null,null,null,null,null,"2026-03-17",null,"MG"]
[null,null,null,null,null,null,null,null,null,null,null,null,null,"2026-03-17",null,"MG"]
[null,null,null,null,null,null,null,null,null,null,null,null,null,"2026-03-17",null,"MG"]
[null,null,null,null,null,null,null,null,null,null,null,null,null,"2026-03-17",null,"MG"]
[null,null,null,null,null,null,null,null,null,null,null,null,null,"2026-03-17",null,"MG"]
[null,null,null,null,null,null,null,null,null,null,null,null,null,"2026-03-17",null,"MG"]
[null,null,null,null,null,null,null,null,null,null,null,null,null,"2026-03-17",null,"MG"]
[null,null,null,null,null,null,null,null,null,null,null,null,null,"2026-03-17",null,"MG"]
[null,null,null,null,null,null,null,null,null,null,null,null,null,"2026-03-17",null,"MG"]
[null,null,null,null,null,null,null,null,null,null,null,null,null,"2026-03-17",null,"MG"]
[null,null,null,null,null,null,null,null,null,null,null,null,null,"2026-03-17",null,"MG"]
[null,null,null,null,null,null,null,null,null,null,null,null,null,"2026-03-17",null,"MG"]
[null,null,null,null,null,null,null,null,null,null,null,null,null,"2026-03-17",null,"MG"]
[null,null,null,null,null,null,null,null,null,null,null,null,null,"2026-03-18",null,"MG"]
[null,null,null,null,null,null,null,null,null,null,null,null,null,"2026-03-18",null,"MG"]
[null,null,null,null,null,null,null,null,null,null,null,null,null,"2026-03-18",null,"MG"]
[null,null,null,null,null,null,null,null,null,null,null,null,null,"2026-03-18",null,"MG"]
[null,null,null,null,null,null,null,null,null,null,null,null,null,"2026-03-18",null,"MG"]
[null,null,null,null,null,null,null,null,null,null,null,null,null,"2026-03-18",null,"MG"]
[null,null,null,null,null,null,null,null,null,null,null,null,null,"2026-03-18",null,"MG"]
[null,null,null,null,null,null,null,null,null,null,null,null,null,"2026-03-18",null,"MG"]
[null,null,null,null,null,null,null,null,null,null,null,null,null,"2026-03-18",null,"MG"]
[null,null,null,null,null,null,null,null,null,null,null,null,null,"2026-03-18",null,"MG"]
[null,null,null,null,null,null,null,null,null,null,null,null,null,"2026-03-18",null,"MG"]
[null,null,null,null,null,null,null,null,null,null,null,null,null,"2026-03-18",null,"MG"]
[null,null,null,null,null,null,null,null,null,null,null,null,null,"2026-03-18",null,"MG"]
[null,null,null,null,null,null,null,null,null,null,null,null,null,"2026-03-18",null,"MG"]
[null,null,null,null,null,null,null,null,null,null,null,null,null,"2026-03-18",null,"MG"]
[null,null,null,null,null,null,null,null,null,null,null,null,null,"2026-03-18",null,"MG"]
[null,null,null,null,null,null,null,null,null,null,null,null,null,"2026-03-19",null,"MG"]
[null,null,null,null,null,null,null,null,null,null,null,null,null,"2026-03-19",null,"MG"]
[null,null,null,null,null,null,null,null,null,null,null,null,null,"2026-03-20",null,"MG"]
[null,null,null,null,null,null,null,null,null,null,null,null,null,"2026-03-20",null,"MG"]
[null,null,null,null,null,null,null,null,null,null,null,null,null,"2026-03-20",null,"MG"]
[null,null,null,null,null,null,null,null,null,null,null,null,null,"2026-03-23",null,"Slo"]
[null,null,null,null,null,null,null,null,null,null,null,null,null,"2026-03-23",null,"Slo"]
[null,null,null,null,null,null,null,null,null,null,null,null,null,"2026-03-23",null,"Slo"]
[null,null,null,null,null,null,null,null,null,null,null,null,null,"2026-03-23",null,"MG"]
[null,null,null,null,null,null,null,null,null,null,null,null,null,"2026-03-23",null,"MG"]
[null,null,null,null,null,null,null,null,null,null,null,null,null,"2026-03-23",null,"MG"]
[null,null,null,null,null,null,null,null,null,null,null,null,null,"2026-03-23",null,"MG"]
[null,null,null,null,null,null,null,null,null,null,null,null,null,"2026-03-23",null,"MG"]
[null,null,null,null,null,null,null,null,null,null,null,null,null,"2026-03-23",null,"MG"]
[null,null,null,null,null,null,null,null,null,null,null,null,null,"2026-03-23",null,"MG"]
[null,null,null,null,null,null,null,null,null,null,null,null,null,"2026-03-23",null,"MG"]
[null,null,null,null,null,null,null,null,null,null,null,null,null,"2026-03-23",null,"MG"]
[null,null,null,null,null,null,null,null,null,null,null,null,null,"2026-03-24",null,"MG"]
[null,null,null,null,null,null,null,null,null,null,null,null,null,"2026-03-24",null,"MG"]

{"sheet":"Rg_Eingang_Tag","index":1,"n_rows":51,"n_cols":60,"rows_kept":51,"cut":false,"hidden":false,"merged":[[1,5,1,6],[2,15,2,16],[1,15,1,16],[1,30,1,31],[1,45,1,46],[2,30,2,31],[2,35,2,36],[2,40,2,41],[2,45,2,46],[2,50,2,51],[2,55,2,56],[2,0,2,1],[2,5,2,6],[2,10,2,11],[2,20,2,21],[2,25,2,26]]}
[]
[null,null,null,null,null,2026,null,null,null,null,null,null,null,null,null,{"$f":"+F2","v":2026},null,null,null,null,null,null,null,null,null,null,null,null,null,null,{"$f":"+F2","v":2026},null,null,null,null,null,null,null,null,null,null,null,null,null,null,{"$f":"+F2","v":2026}]
["Januar",null,"MG","Pau","Slo","Februar",null,"MG","Pau","Slo","März",null,"MG","Pau","Slo","April",null,"MG","Pau","Slo","Mai",null,"MG","Pau","Slo","Juni",null,"MG","Pau","Slo","Juli",null,"MG","Pau","Slo","August",null,"MG","Pau","Slo","September",null,"MG","Pau","Slo","Oktober",null,"MG","Pau","Slo","November",null,"MG","Pau","Slo","Dezember",null,"MG","Pau","Slo"]
[{"$f":"TEXT(DATE($F$2,1+INT((COLUMN()-1)/3),1)+ROW(A1)-1,\"TTT\")","v":"Do"},{"$f":"DATE($F$2,MONTH(1&A3),1)","v":"2026-01-01"},null,null,null,{"$f":"TEXT(DATE($F$2,2,1)+ROW(A1)-1,\"TTT\")","v":"So"},{"$f":"DATE($F$2,MONTH(1&F3),1)","v":"2026-02-01"},null,null,null,{"$f":"TEXT(DATE($F$2,3,1)+ROW(A1)-1,\"TTT\")","v":"So"},{"$f":"DATE($F$2,MONTH(1&K3),1)","v":"2026-03-01"},null,null,null,{"$f":"TEXT(DATE($F$2,4,1)+ROW(A1)-1,\"TTT\")","v":"Mi"},{"$f":"DATE($F$2,MONTH(1&P3),1)","v":"2026-04-01"},null,null,null,{"$f":"TEXT(DATE($F$2,5,1)+ROW(A1)-1,\"TTT\")","v":"Fr"},{"$f":"DATE($F$2,MONTH(1&U3),1)","v":"2026-05-01"},null,null,null,{"$f":"TEXT(DATE($F$2,6,1)+ROW(A1)-1,\"TTT\")","v":"Mo"},{"$f":"DATE($F$2,MONTH(1&Z3),1)","v":"2026-06-01"},null,null,null,{"$f":"TEXT(DATE($F$2,7,1)+ROW(A1)-1,\"TTT\")","v":"Mi"},{"$f":"DATE($F$2,MONTH(1&AE3),1)","v":"2026-07-01"},null,null,null,{"$f":"TEXT(DATE($F$2,8,1)+ROW(A1)-1,\"TTT\")","v":"Sa"},{"$f":"DATE($F$2,MONTH(1&AJ3),1)","v":"2026-08-01"},null,null,null,{"$f":"TEXT(DATE($F$2,9,1)+ROW(A1)-1,\"TTT\")","v":"Di"},{"$f":"DATE($F$2,MONTH(1&AO3),1)","v":"2026-09-01"},null,null,null,{"$f":"TEXT(DATE($F$2,10,1)+ROW(A1)-1,\"TTT\")","v":"Do"},{"$f":"DATE($F$2,MONTH(1&AT3),1)","v":"2026-10-01"},null,null,null,{"$f":"TEXT(DATE($F$2,11,1)+ROW(A1)-1,\"TTT\")","v":"So"},{"$f":"DATE($F$2,MONTH(1&AY3),1)","v":"2026-11-01"},null,null,null,{"$f":"TEXT(DATE($F$2,12,1)+ROW(A1)-1,\"TTT\")","v":"Di"},{"$f":"DATE($F$2,MONTH(1&BD3),1)","v":"2026-12-01"}]
[{"$f":"TEXT(DATE($F$2,1+INT((COLUMN()-1)/3),1)+ROW(A2)-1,\"TTT\")","v":"Fr"},{"$f":"B4+1","v":"2026-01-02"},null,null,null,{"$f":"TEXT(DATE($F$2,2,1)+ROW(A2)-1,\"TTT\")","v":"Mo"},{"$f":"G4+1","v":"2026-02-02"},null,null,null,{"$f":"TEXT(DATE($F$2,3,1)+ROW(A2)-1,\"TTT\")","v":"Mo"},{"$f":"L4+1","v":"2026-03-02"},null,null,null,{"$f":"TEXT(DATE($F$2,4,1)+ROW(A2)-1,\"TTT\")","v":"Do"},{"$f":"Q4+1","v":"2026-04-02"},null,null,null,{"$f":"TEXT(DATE($F$2,5,1)+ROW(A2)-1,\"TTT\")","v":"Sa"},{"$f":"V4+1","v":"2026-05-02"},null,null,null,{"$f":"TEXT(DATE($F$2,6,1)+ROW(A2)-1,\"TTT\")","v":"Di"},{"$f":"AA4+1","v":"2026-06-02"},null,null,null,{"$f":"TEXT(DATE($F$2,7,1)+ROW(A2)-1,\"TTT\")","v":"Do"},{"$f":"AF4+1","v":"2026-07-02"},null,null,null,{"$f":"TEXT(DATE($F$2,8,1)+ROW(A2)-1,\"TTT\")","v":"So"},{"$f":"AK4+1","v":"2026-08-02"},null,null,null,{"$f":"TEXT(DATE($F$2,9,1)+ROW(A2)-1,\"TTT\")","v":"Mi"},{"$f":"AP4+1","v":"2026-09-02"},null,null,null,{"$f":"TEXT(DATE($F$2,10,1)+ROW(A2)-1,\"TTT\")","v":"Fr"},{"$f":"AU4+1","v":"2026-10-02"},null,null,null,{"$f":"TEXT(DATE($F$2,11,1)+ROW(A2)-1,\"TTT\")","v":"Mo"},{"$f":"AZ4+1","v":"2026-11-02"},null,null,null,{"$f":"TEXT(DATE($F$2,12,1)+ROW(A2)-1,\"TTT\")","v":"Mi"},{"$f":"BE4+1","v":"2026-12-02"}]
[{"$f":"TEXT(DATE($F$2,1+INT((COLUMN()-1)/3),1)+ROW(A3)-1,\"TTT\")","v":"Sa"},{"$f":"B5+1","v":"2026-01-03"},null,null,null,{"$f":"TEXT(DATE($F$2,2,1)+ROW(A3)-1,\"TTT\")","v":"Di"},{"$f":"G5+1","v":"2026-02-03"},null,null,null,{"$f":"TEXT(DATE($F$2,3,1)+ROW(A3)-1,\"TTT\")","v":"Di"},{"$f":"L5+1","v":"2026-03-03"},null,null,null,{"$f":"TEXT(DATE($F$2,4,1)+ROW(A3)-1,\"TTT\")","v":"Fr"},{"$f":"Q5+1","v":"2026-04-03"},null,null,null,{"$f":"TEXT(DATE($F$2,5,1)+ROW(A3)-1,\"TTT\")","v":"So"},{"$f":"V5+1","v":"2026-05-03"},null,null,null,{"$f":"TEXT(DATE($F$2,6,1)+ROW(A3)-1,\"TTT\")","v":"Mi"},{"$f":"AA5+1","v":"2026-06-03"},null,null,null,{"$f":"TEXT(DATE($F$2,7,1)+ROW(A3)-1,\"TTT\")","v":"Fr"},{"$f":"AF5+1","v":"2026-07-03"},null,null,null,{"$f":"TEXT(DATE($F$2,8,1)+ROW(A3)-1,\"TTT\")","v":"Mo"},{"$f":"AK5+1","v":"2026-08-03"},null,null,null,{"$f":"TEXT(DATE($F$2,9,1)+ROW(A3)-1,\"TTT\")","v":"Do"},{"$f":"AP5+1","v":"2026-09-03"},null,null,null,{"$f":"TEXT(DATE($F$2,10,1)+ROW(A3)-1,\"TTT\")","v":"Sa"},{"$f":"TEXT(DATE($F$2,10,1)+ROW(A3)-1,\"TT.MM.\")","v":"03.10."},null,null,null,{"$f":"TEXT(DATE($F$2,11,1)+ROW(A3)-1,\"TTT\")","v":"Di"},{"$f":"TEXT(DATE($F$2,11,1)+ROW(A3)-1,\"TT.MM.\")","v":"03.11."},null,null,null,{"$f":"TEXT(DATE($F$2,12,1)+ROW(A3)-1,\"TTT\")","v":"Do"},{"$f":"TEXT(DATE($F$2,12,1)+ROW(A3)-1,\"TT.MM.\")","v":"03.12."}]
["So","2026-01-04",null,null,null,"Mi","2026-02-04",null,null,null,"Mi","2026-03-04",null,null,null,"Sa","2026-04-04",null,null,null,"Mo","2026-05-04",null,null,null,"Do","2026-06-04",null,null,null,"Sa","2026-07-04",null,null,null,"Di","2026-08-04",null,null,null,"Fr","2026-09-04",null,null,null,"So",{"$f":"TEXT(DATE($F$2,10,1)+ROW(A4)-1,\"TT.MM.\")","v":"04.10."},null,null,null,"Mi",{"$f":"TEXT(DATE($F$2,11,1)+ROW(A4)-1,\"TT.MM.\")","v":"04.11."},null,null,null,"Fr",{"$f":"TEXT(DATE($F$2,12,1)+ROW(A4)-1,\"TT.MM.\")","v":"04.12."}]
["Mo","2026-01-05",null,null,null,"Do","2026-02-05",null,null,null,"Do","2026-03-05",null,null,null,"So","2026-04-05",null,null,null,"Di","2026-05-05",null,null,null,"Fr","2026-06-05",null,null,null,"So","2026-07-05",null,null,null,"Mi","2026-08-05",null,null,null,"Sa","2026-09-05",null,null,null,"Mo","05.10.",null,null,null,"Do","05.11.",null,null,null,"Sa","05.12."]
["Di","2026-01-06",null,null,null,"Fr","2026-02-06",null,null,null,"Fr","2026-03-06",null,null,null,"Mo","2026-04-06",null,null,null,"Mi","2026-05-06",null,null,null,"Sa","2026-06-06",null,null,null,"Mo","2026-07-06",null,null,null,"Do","2026-08-06",null,null,null,"So","2026-09-06",null,null,null,"Di","06.10.",null,null,null,"Fr","06.11.",null,null,null,"So","06.12."]
["Mi","2026-01-07",null,null,null,"Sa","2026-02-07",null,null,null,"Sa","2026-03-07",null,null,null,"Di","2026-04-07",null,null,null,"Do","2026-05-07",null,null,null,"So","2026-06-07",null,null,null,"Di","2026-07-07",null,null,null,"Fr","2026-08-07",null,null,null,"Mo","2026-09-07",null,null,null,"Mi","07.10.",null,null,null,"Sa","07.11.",null,null,null,"Mo","07.12."]
["Do","2026-01-08",null,null,null,"So","2026-02-08",null,null,null,"So","2026-03-08",null,null,null,"Mi","2026-04-08",null,null,null,"Fr","2026-05-08",null,null,null,"Mo","2026-06-08",null,null,null,"Mi","2026-07-08",null,null,null,"Sa","2026-08-08",null,null,null,"Di","2026-09-08",null,null,null,"Do","08.10.",null,null,null,"So","08.11.",null,null,null,"Di","08.12."]
["Fr","2026-01-09",null,null,null,"Mo","2026-02-09",null,null,null,"Mo","2026-03-09",null,null,null,"Do","2026-04-09",null,null,null,"Sa","2026-05-09",null,null,null,"Di","2026-06-09",null,null,null,"Do","2026-07-09",null,null,null,"So","2026-08-09",null,null,null,"Mi","2026-09-09",null,null,null,"Fr","09.10.",null,null,null,"Mo","09.11.",null,null,null,"Mi","09.12."]
["Sa","2026-01-10",null,null,null,"Di","2026-02-10",null,null,null,"Di","2026-03-10",null,null,null,"Fr","2026-04-10",null,null,null,"So","2026-05-10",null,null,null,"Mi","2026-06-10",null,null,null,"Fr","2026-07-10",null,null,null,"Mo","2026-08-10",null,null,null,"Do","2026-09-10",null,null,null,"Sa","10.10.",null,null,null,"Di","10.11.",null,null,null,"Do","10.12."]
["So","2026-01-11",null,null,null,"Mi","2026-02-11",null,null,null,"Mi","2026-03-11",null,null,null,"Sa","2026-04-11",null,null,null,"Mo","2026-05-11",null,null,null,"Do","2026-06-11",null,null,null,"Sa","2026-07-11",null,null,null,"Di","2026-08-11",null,null,null,"Fr","2026-09-11",null,null,null,"So","11.10.",null,null,null,"Mi","11.11.",null,null,null,"Fr","11.12."]
["Mo","2026-01-12",null,null,null,"Do","2026-02-12",null,null,null,"Do","2026-03-12",null,null,null,"So","2026-04-12",null,null,null,"Di","2026-05-12",null,null,null,"Fr","2026-06-12",null,null,null,"So","2026-07-12",null,null,null,"Mi","2026-08-12",null,null,null,"Sa","2026-09-12",null,null,null,"Mo","12.10.",null,null,null,"Do","12.11.",null,null,null,"Sa","12.12."]
["Di","2026-01-13",null,null,null,"Fr","2026-02-13",null,null,null,"Fr","2026-03-13",null,null,null,"Mo","2026-04-13",null,null,null,"Mi","2026-05-13",null,null,null,"Sa","2026-06-13",null,null,null,"Mo","2026-07-13",null,null,null,"Do","2026-08-13",null,null,null,"So","2026-09-13",null,null,null,"Di","13.10.",null,null,null,"Fr","13.11.",null,null,null,"So","13.12."]
["Mi","2026-01-14",null,null,null,"Sa","2026-02-14",null,null,null,"Sa","2026-03-14",null,null,null,"Di","2026-04-14",null,null,null,"Do","2026-05-14",null,null,null,"So","2026-06-14",null,null,null,"Di","2026-07-14",null,null,null,"Fr","2026-08-14",null,null,null,"Mo","2026-09-14",null,null,null,"Mi","14.10.",null,null,null,"Sa","14.11.",null,null,null,"Mo","14.12."]
["Do","2026-01-15",null,null,null,"So","2026-02-15",null,null,null,"So","2026-03-15",null,null,null,"Mi","2026-04-15",null,null,null,"Fr","2026-05-15",null,null,null,"Mo","2026-06-15",null,null,null,"Mi","2026-07-15",null,null,null,"Sa","2026-08-15",null,null,null,"Di","2026-09-15",null,null,null,"Do","15.10.",null,null,null,"So","15.11.",null,null,null,"Di","15.12."]
["Fr","2026-01-16",null,null,null,"Mo","2026-02-16",null,null,null,"Mo","2026-03-16",null,null,null,"Do","2026-04-16",null,null,null,"Sa","2026-05-16",null,null,null,"Di","2026-06-16",null,null,null,"Do","2026-07-16",null,null,null,"So","2026-08-16",null,null,null,"Mi","2026-09-16",null,null,null,"Fr","16.10.",null,null,null,"Mo","16.11.",null,null,null,"Mi","16.12."]
["Sa","2026-01-17",null,null,null,"Di","2026-02-17",null,null,null,"Di","2026-03-17",null,null,null,"Fr","2026-04-17",null,null,null,"So","2026-05-17",null,null,null,"Mi","2026-06-17",null,null,null,"Fr","2026-07-17",null,null,null,"Mo","2026-08-17",null,null,null,"Do","2026-09-17",null,null,null,"Sa","17.10.",null,null,null,"Di","17.11.",null,null,null,"Do","17.12."]
["So","2026-01-18",null,null,null,"Mi","2026-02-18",null,null,null,"Mi","2026-03-18",null,null,null,"Sa","2026-04-18",null,null,null,"Mo","2026-05-18",null,null,null,"Do","2026-06-18",null,null,null,"Sa","2026-07-18",null,null,null,"Di","2026-08-18",null,null,null,"Fr","2026-09-18",null,null,null,"So","18.10.",null,null,null,"Mi","18.11.",null,null,null,"Fr","18.12."]
["Mo","2026-01-19",null,null,null,"Do","2026-02-19",null,null,null,"Do","2026-03-19",null,null,null,"So","2026-04-19",null,null,null,"Di","2026-05-19",null,null,null,"Fr","2026-06-19",null,null,null,"So","2026-07-19",null,null,null,"Mi","2026-08-19",null,null,null,"Sa","2026-09-19",null,null,null,"Mo","19.10.",null,null,null,"Do","19.11.",null,null,null,"Sa","19.12."]
["Di","2026-01-20",null,null,null,"Fr","2026-02-20",null,null,null,"Fr","2026-03-20",null,null,null,"Mo","2026-04-20",null,null,null,"Mi","2026-05-20",null,null,null,"Sa","2026-06-20",null,null,null,"Mo","2026-07-20",null,null,null,"Do","2026-08-20",null,null,null,"So","2026-09-20",null,null,null,"Di","20.10.",null,null,null,"Fr","20.11.",null,null,null,"So","20.12."]
["Mi","2026-01-21",null,null,null,"Sa","2026-02-21",null,null,null,"Sa","2026-03-21",null,null,null,"Di","2026-04-21",null,null,null,"Do","2026-05-21",null,null,null,"So","2026-06-21",null,null,null,"Di","2026-07-21",null,null,null,"Fr","2026-08-21",null,null,null,"Mo","2026-09-21",null,null,null,"Mi","21.10.",null,null,null,"Sa","21.11.",null,null,null,"Mo","21.12."]
["Do","2026-01-22",null,null,null,"So","2026-02-22",null,null,null,"So","2026-03-22",null,null,null,"Mi","2026-04-22",null,null,null,"Fr","2026-05-22",null,null,null,"Mo","2026-06-22",null,null,null,"Mi","2026-07-22",null,null,null,"Sa","2026-08-22",null,null,null,"Di","2026-09-22",null,null,null,"Do","22.10.",null,null,null,"So","22.11.",null,null,null,"Di","22.12."]
["Fr","2026-01-23",null,null,null,"Mo","2026-02-23",null,null,null,"Mo","2026-03-23",null,null,null,"Do","2026-04-23",null,null,null,"Sa","2026-05-23",null,null,null,"Di","2026-06-23",null,null,null,"Do","2026-07-23",null,null,null,"So","2026-08-23",null,null,null,"Mi","2026-09-23",null,null,null,"Fr","23.10.",null,null,null,"Mo","23.11.",null,null,null,"Mi","23.12."]
["Sa","2026-01-24",null,null,null,"Di","2026-02-24",null,null,null,"Di","2026-03-24",null,null,null,"Fr","2026-04-24",null,null,null,"So","2026-05-24",null,null,null,"Mi","2026-06-24",null,null,null,"Fr","2026-07-24",null,null,null,"Mo","2026-08-24",null,null,null,"Do","2026-09-24",null,null,null,"Sa","24.10.",null,null,null,"Di","24.11.",null,null,null,"Do","24.12."]
["So","2026-01-25",null,null,null,"Mi","2026-02-25",null,null,null,"Mi","2026-03-25",null,null,null,"Sa","2026-04-25",null,null,null,"Mo","2026-05-25",null,null,null,"Do","2026-06-25",null,null,null,"Sa","2026-07-25",null,null,null,"Di","2026-08-25",null,null,null,"Fr","2026-09-25",null,null,null,"So","25.10.",null,null,null,"Mi","25.11.",null,null,null,"Fr","25.12."]
["Mo","2026-01-26",null,null,null,"Do","2026-02-26",null,null,null,"Do","2026-03-26",null,null,null,"So","2026-04-26",null,null,null,"Di","2026-05-26",null,null,null,"Fr","2026-06-26",null,null,null,"So","2026-07-26",null,null,null,"Mi","2026-08-26",null,null,null,"Sa","2026-09-26",null,null,null,"Mo","26.10.",null,null,null,"Do","26.11.",null,null,null,"Sa","26.12."]
["Di","2026-01-27",null,null,null,"Fr","2026-02-27",null,null,null,"Fr","2026-03-27",null,null,null,"Mo","2026-04-27",null,null,null,"Mi","2026-05-27",null,null,null,"Sa","2026-06-27",null,null,null,"Mo","2026-07-27",null,null,null,"Do","2026-08-27",null,null,null,"So","2026-09-27",null,null,null,"Di","27.10.",null,null,null,"Fr","27.11.",null,null,null,"So","27.12."]
["Mi","2026-01-28",null,null,null,"Sa","2026-02-28",null,null,null,"Sa","2026-03-28",null,null,null,"Di","2026-04-28",null,null,null,"Do","2026-05-28",null,null,null,"So","2026-06-28",null,null,null,"Di","2026-07-28",null,null,null,"Fr","2026-08-28",null,null,null,"Mo","2026-09-28",null,null,null,"Mi","28.10.",null,null,null,"Sa","28.11.",null,null,null,"Mo","28.12."]
["Do","2026-01-29",null,null,null,null,null,null,null,null,"So","2026-03-29",null,null,null,"Mi","2026-04-29",null,null,null,"Fr","2026-05-29",null,null,null,"Mo","2026-06-29",null,null,null,"Mi","2026-07-29",null,null,null,"Sa","2026-08-29",null,null,null,"Di","2026-09-29",null,null,null,"Do","29.10.",null,null,null,"So","29.11.",null,null,null,"Di","29.12."]
["Fr","2026-01-30",null,null,null,null,null,null,null,null,"Mo","2026-03-30",null,null,null,"Do","2026-04-30",null,null,null,"Sa","2026-05-30",null,null,null,"Di","2026-06-30",null,null,null,"Do","2026-07-30",null,null,null,"So","2026-08-30",null,null,null,"Mi","2026-09-30",null,null,null,"Fr","30.10.",null,null,null,"Mo","30.11.",null,null,null,"Mi","30.12."]
["Sa","2026-01-31",null,null,null,null,null,null,null,null,"Di","2026-03-31",null,null,null,null,null,null,null,null,"So","2026-05-31",null,null,null,null,null,null,null,null,"Fr","2026-07-31",null,null,null,"Mo","2026-08-31",null,null,null,null,null,null,null,null,"Sa","31.10.",null,null,null,null,null,null,null,null,"Do","31.12."]
[null,null,{"$f":"SUM(C4:C34)","v":0},{"$f":"SUM(D4:D34)","v":0},0,null,null,{"$f":"SUM(H4:H34)","v":0},0,0,null,null,{"$f":"SUM(M4:M34)","v":0},0,0,null,null,{"$f":"IF(SUM(R8:R34)=0,\"\",SUM(R8:R34))","v":""},"","",null,null,"","","",null,null,"","","",null,null,"","","",null,null,"","","",null,null,"","","",null,null,"","","",null,null,"","","",null,null,"","",{"$f":"IF(SUM(BH8:BH34)=0,\"\",SUM(BH8:BH34))","v":""}]
[]
["Gesamt pro Monat /Jahr:"]
[null,null,"MG","Pau","Slo",null,null,null,"starte zuerst mein Makro und beachte dann die Hinweise für die unterschiedlichen Farben",null,null,null,null,null,null,null,null,null,null,null,null,null,null,null,null,null,null,null,null,null,null,null,null,"B5,G5, L5, Q5, V5, AA5, AF5,",null,null,null,null,"Ak5, AP5, AU5, AZ5 und BE5 sein,"]
["Januar",null,{"$f":"+C35","v":0},{"$f":"+D35","v":0},{"$f":"+E35","v":0},{"$f":"SUM(C39:E39)","v":0},null,null,null,"=","ALLE Zahlen für Ma,Slk,Pak ergeben als Summe = 333"]
["Februar",null,{"$f":"+H35","v":0},{"$f":"+I35","v":0},{"$f":"+J35","v":0},{"$f":"SUM(C40:E40)","v":0},null,null,null,"=","deine Formeln in Zeile 35 beginnen alle erst ab Zeile 8 = somit fehlen hier alle Werte aus den Zeilen 5 bis 7"]
["März",null,{"$f":"+M35","v":0},{"$f":"+N35","v":0},{"$f":"+O35","v":0},0,null,null,null,"=","HIER dürfen keine Werte stehen, weil ja Februar nur max 29 Tage hat;und wenn du genau hinguckst, werden ja genau diese Werte in den Spalten M+N für Monat März wiederholt"]
["April",null,null,null,null,0]
["Mai",null,null,null,null,0,null,null,null,null,null,"=ODER(A4=\"Sa\";A4=\"So\")",null,null,null,null,null,null,null,null,null,null,null,null,null,null,null,null,null,null,null,null,null,null,null,null,null,"m"]
["Juni",null,null,null,null,0,null,null,null,null,null,null,null,null,null,null,null,1]
["Juli",null,null,null,null,0,null,null,null,null,null,null,null,null,null,null,null,null,null,"=WOCHENTAG(A1;2)>5",null,null,null,null,null,null,null,"=$L4:$L34=HEUTE()"]
["August",null,null,null,null,0]
["September",null,null,null,null,0,null,null,null,null,null,null,null,null,null,null,null,null,null,"=ODER(P4=\"Sa\";P4=\"So\")",null,null,null,null,null,null,null,"1. verschiebe die ganze Tabelle um eine Spalte nach rechts!"]
["Oktober",null,null,null,null,0,null,null,null,"=ZÄHLENWENNS(A4:C4;TEXT(HEUTE();\"TT.MM.\"))",null,null,null,null,null,null,null,null,null,null,null,null,null,null,null,null,null,"2. markiere den Bereich ab Zelle D4 (vorher C4) bis BI34 und richte die bedingte Formatierung mit dieser Regel ein:"]
["November",null,null,null,null,0,null,null,null,null,null,null,null,null,null,null,null,null,null,null,null,null,null,null,null,null,null,"=ZählenWenns(A4:C4;Text(Heute();\"TT.MM.\")"]
["Dezember",null,null,null,null,0]
[null,"Gesamt:",{"$f":"SUM(C39:C50)","v":0},{"$f":"SUM(D39:D50)","v":0},0,0]